bitfinex/quotes_BTCUSD_20251201
["timestamp","ask_amount","ask_price","bid_price","bid_amount"]
[1764568659375,0.03315565,86098.0,86097.0,0.11669]
[1764568659912,0.03215565,86098.0,86097.0,0.11669]
[1764568660068,0.03315565,86098.0,86097.0,0.11669]
[1764568660271,0.03415565,86098.0,86097.0,0.06388]
[1764568661398,0.03415565,86098.0,86097.0,0.1525517]
[1764568661924,0.03415565,86098.0,86097.0,0.0997417]
[1764568662213,0.03415565,86098.0,86097.0,0.06388]
[1764568662630,0.03315565,86098.0,86097.0,0.11669]
[1764568662920,0.03215565,86098.0,86097.0,0.11669]
[1764568665172,0.03215565,86098.0,86097.0,0.06388]
[1764568666114,0.01161494,86096.0,86093.0,0.02758]
[1764568666932,0.24391562,86096.0,86093.0,0.039113]
[1764568667283,0.24391562,86096.0,86095.0,0.03509]
[1764568667714,0.24391562,86096.0,86095.0,0.08597]
[1764568668923,0.24491562,86096.0,86095.0,0.08597]
[1764568669726,0.56891562,86096.0,86095.0,0.08597]
[1764568674400,0.55729882,86096.0,86095.0,0.08597]
[1764568677789,0.55729882,86096.0,86095.0,0.03509]
[1764568678012,0.55729882,86096.0,86095.0,0.08597]
[1764568678413,0.23329882,86096.0,86095.0,0.08597]
[1764568680146,0.23229882,86096.0,86095.0,0.08597]
[1764568680354,0.23529882,86096.0,86095.0,0.08597]
[1764568680567,0.23529882,86096.0,86095.0,0.03509]
[1764568680750,0.23629882,86096.0,86095.0,0.08597]
[1764568681433,0.23529882,86096.0,86095.0,0.08597]
[1764568681830,0.23629882,86096.0,86095.0,0.08597]
[1764568682060,0.23329882,86096.0,86095.0,0.08597]
[1764568682259,0.23529882,86096.0,86095.0,0.08597]
[1764568683042,0.003,86096.0,86095.0,0.08597]
[1764568688149,0.2760658,86098.0,86095.0,0.08597]
[1764568688355,0.01261494,86096.0,86093.0,0.02758]
[1764568688534,0.24691521,86096.0,86093.0,0.02758]
[1764568688729,0.24491521,86096.0,86095.0,0.03509]
[1764568689102,0.24691521,86096.0,86095.0,0.08597]
[1764568689352,0.24591521,86096.0,86095.0,0.08597]
[1764568689498,0.24391521,86096.0,86095.0,0.08597]
[1764568689703,0.24491521,86096.0,86095.0,0.08597]
[1764568690157,0.24691521,86096.0,86095.0,0.08597]
[1764568691572,0.24491521,86096.0,86095.0,0.08597]
[1764568691708,0.24591521,86096.0,86095.0,0.08597]
[1764568692749,0.24591521,86096.0,86095.0,0.100083]
[1764568693326,0.24591521,86096.0,86095.0,0.026113]
[1764568693534,0.24591521,86096.0,86095.0,0.04709]
[1764568697868,0.24591521,86096.0,86095.0,0.03509]
[1764568698897,0.24591521,86096.0,86095.0,0.08691]
[1764568702236,0.24591521,86096.0,86089.0,0.02758]
[1764568702237,0.01161548,86092.0,86089.0,0.02758]
[1764568702440,0.23231501,86090.0,86089.0,0.02758]
[1764568702642,0.23231501,86090.0,86089.0,0.0794]
[1764568702847,0.23231501,86090.0,86089.0,0.11597]
[1764568704347,0.23231501,86090.0,86089.0,0.11697]
[1764568704774,0.23231501,86090.0,86089.0,0.11597]
[1764568705053,0.23231501,86090.0,86089.0,0.11697]
[1764568711119,0.24392726,86092.0,86089.0,0.11697]
[1764568711360,0.23231449,86091.0,86090.0,0.05182]
[1764568711935,0.23231449,86091.0,86090.0,0.08839]
[1764568712672,0.24392726,86092.0,86090.0,0.08839]
[1764568712876,0.24392726,86092.0,86091.0,0.13730123]
[1764568714251,0.24392726,86092.0,86091.0,0.11407]
[1764568714510,0.24392726,86092.0,86091.0,0.11507]
[1764568715299,0.24492726,86092.0,86091.0,0.11507]
[1764568716405,0.001,86092.0,86091.0,0.11507]
[1764568716633,0.001,86092.0,86091.0,0.13830123]
[1764568717617,0.001,86092.0,86091.0,0.11507]
[1764568718240,0.001,86092.0,86091.0,0.05959]
[1764568718463,0.001,86092.0,86091.0,0.09238]
[1764568719728,0.001,86092.0,86091.0,0.11561123]
[1764568720272,0.001,86092.0,86091.0,0.15052334]
[1764568720984,0.01161399,86103.0,86097.0,0.0116148]
[1764568721120,0.01161413,86102.0,86100.0,0.01231]
[1764568721320,0.24389876,86102.0,86100.0,0.01231]
[1764568721541,0.24389876,86102.0,86101.0,0.08435]
[1764568722385,0.2438863,86106.0,86101.0,0.08435]
[1764568722563,0.01161372,86105.0,86102.0,0.05156]
[1764568722768,0.24389029,86105.0,86102.0,0.05156]
[1764568722964,0.24389029,86105.0,86104.0,0.03279]
[1764568723184,0.01161359,86106.0,86104.0,0.03279]
[1764568723350,9.15e-05,86107.0,86105.0,0.08435]
[1764568723550,9.15e-05,86107.0,86106.0,0.05739]
[1764568723750,9.15e-05,86107.0,86106.0,0.10895]
[1764568724589,0.0020915,86107.0,86106.0,0.10895]
[1764568725278,0.0030915,86107.0,86106.0,0.10895]
[1764568725921,0.0030915,86107.0,86106.0,0.17217761]
[1764568726246,0.0030915,86107.0,86106.0,0.10895]
[1764568726578,0.0020915,86107.0,86106.0,0.10895]
[1764568726983,9.15e-05,86107.0,86106.0,0.10895]
[1764568727158,0.0010915,86107.0,86106.0,0.10895]
[1764568727563,0.0020915,86107.0,86106.0,0.14001323]
[1764568728076,0.0010915,86107.0,86106.0,0.14001323]
[1764568728285,9.15e-05,86107.0,86106.0,0.14001323]
[1764568728700,9.15e-05,86107.0,86106.0,0.14101323]
[1764568729932,9.15e-05,86107.0,86106.0,0.16424041]
[1764568732028,9.15e-05,86107.0,86106.0,0.14101323]
[1764568737870,9.15e-05,86107.0,86106.0,0.14001323]
[1764568738067,0.00096856,86108.0,86107.0,0.23333865]
[1764568738273,0.00096856,86108.0,86107.0,0.32099865]
[1764568738813,0.00096856,86108.0,86107.0,0.33261156]
[1764568740429,0.00096856,86108.0,86107.0,0.33461156]
[1764568744389,0.00096856,86108.0,86107.0,0.10034241]
[1764568744524,0.00096856,86108.0,86107.0,0.10334241]
[1764568745749,0.00096856,86108.0,86107.0,0.10034241]
[1764568745981,0.00096856,86108.0,86107.0,0.10334241]
[1764568746459,0.00096856,86108.0,86107.0,0.10034241]
[1764568746677,0.00096856,86108.0,86107.0,0.10334241]
[1764568747742,0.00096856,86108.0,86107.0,0.0917295]
[1764568748926,0.00096856,86108.0,86107.0,0.0887295]
[1764568749136,0.00096856,86108.0,86107.0,0.0907295]
[1764568755330,0.00096856,86108.0,86107.0,0.12563389]
[1764568755726,0.00096856,86108.0,86107.0,0.11801389]
[1764568757618,0.00096856,86108.0,86107.0,0.1412408]
[1764568759337,0.00736,86134.0,86107.0,0.1412408]
[1764568759338,0.323,86138.0,86107.0,0.1412408]
[1764568759535,0.01166418,86138.0,86137.0,0.05354]
[1764568759745,5.491e-05,86138.0,86137.0,0.05354]
[1764568759899,5.491e-05,86138.0,86130.0,0.02035]
[1764568759900,0.01160995,86133.0,86130.0,0.02035]
[1764568760111,0.01160995,86133.0,86127.0,0.04687]
[1764568760112,0.24382475,86128.0,86127.0,0.00736]
[1764568760475,0.24382475,86128.0,86127.0,0.08006]
[1764568760674,0.24381747,86130.0,86127.0,0.10041]
[1764568760882,0.23221252,86128.0,86127.0,0.10041]
[1764568761301,0.24381747,86130.0,86127.0,0.10041]
[1764568762531,0.01161035,86130.0,86127.0,0.10041]
[1764568762731,0.23221227,86129.0,86127.0,0.14500464]
[1764568762939,0.24381747,86130.0,86127.0,0.14500464]
[1764568763341,0.01261035,86130.0,86127.0,0.14500464]
[1764568763527,0.01161035,86130.0,86128.0,0.04687]
[1764568763740,0.01161035,86130.0,86129.0,0.03319]
[1764568765362,0.01331429,86130.0,86129.0,0.09415662]
[1764568765560,0.01331429,86130.0,86129.0,0.08006]
[1764568766054,0.00070394,86130.0,86129.0,0.08006]
[1764568766413,0.23220417,86132.0,86129.0,0.08006]
[1764568766733,0.001,86130.0,86127.0,0.0765554]
[1764568767070,0.001,86130.0,86129.0,0.03319]
[1764568767297,0.01161008,86132.0,86129.0,0.0646067]
[1764568767609,0.01134877,86133.0,86131.0,0.05354]
[1764568767821,0.01160968,86135.0,86132.0,0.03319]
[1764568768000,0.01160968,86135.0,86134.0,0.03319]
[1764568768202,0.24380091,86136.0,86134.0,0.03319]
[1764568768402,0.01192009,86138.0,86135.0,0.08006]
[1764568768600,0.00031082,86138.0,86137.0,0.02035]
[1764568768968,0.00031082,86138.0,86137.0,0.10041]
[1764568769591,0.00031082,86138.0,86137.0,0.33259825]
[1764568769856,0.00131082,86138.0,86137.0,0.33259825]
[1764568770050,0.00131082,86138.0,86137.0,0.36401495]
[1764568772351,0.00131082,86138.0,86137.0,0.1318267]
[1764568773216,0.00131082,86138.0,86136.0,0.01160873]
[1764568773217,0.23349815,86138.0,86136.0,0.01160873]
[1764568773352,0.24380796,86134.0,86131.0,0.07677]
[1764568773558,0.01160981,86134.0,86131.0,0.07677]
[1764568773753,0.01160941,86137.0,86133.0,0.03316]
[1764568773971,0.01160941,86137.0,86136.0,0.03316]
[1764568774338,0.01160941,86137.0,86136.0,0.08222]
[1764568775444,0.00031082,86138.0,86136.0,0.08222]
[1764568775646,0.00031082,86138.0,86137.0,0.08222]
[1764568778090,0.00131082,86138.0,86137.0,0.08222]
[1764568779412,0.00131082,86138.0,86137.0,0.10543882]
[1764568781715,0.00031082,86138.0,86137.0,0.10543882]
[1764568781960,0.00031082,86138.0,86137.0,0.08222]
[1764568782084,0.00031082,86138.0,86137.0,0.08322]
[1764568782579,0.00031082,86138.0,86137.0,0.09779585]
[1764568782966,0.00031082,86138.0,86137.0,0.09679585]
[1764568785438,0.00031082,86138.0,86137.0,0.09779585]
[1764568786450,0.23157131,86139.0,86138.0,0.03316]
[1764568786648,0.23157131,86139.0,86138.0,0.08222]
[1764568786867,0.23157131,86139.0,86138.0,0.09505743]
[1764568788942,0.23157131,86139.0,86138.0,0.09605743]
[1764568789149,0.23157131,86139.0,86138.0,0.001]
[1764568790360,0.23157131,86139.0,86138.0,0.08505]
[1764568790767,0.24399114,86140.0,86138.0,0.08505]
[1764568790928,0.24399114,86140.0,86139.0,0.08405]
[1764568792776,0.24399114,86140.0,86139.0,0.08505]
[1764568794849,0.23741714,86140.0,86139.0,0.08505]
[1764568794975,0.23741714,86140.0,86139.0,0.094716]
[1764568795410,0.23741714,86140.0,86139.0,0.08505]
[1764568795790,0.23741714,86140.0,86139.0,0.001]
[1764568796194,0.23741714,86140.0,86139.0,0.03393]
[1764568796400,0.23741714,86140.0,86139.0,0.08505]
[1764568796980,0.23741714,86140.0,86139.0,0.03393]
[1764568799487,0.23741714,86140.0,86139.0,0.10706]
[1764568800622,0.23741714,86140.0,86139.0,0.05594]
[1764568801187,0.23741714,86140.0,86139.0,0.02301]
[1764568802294,0.23741714,86140.0,86139.0,0.05594]
[1764568802497,0.23741714,86140.0,86139.0,0.10706]
[1764568803794,0.23741714,86140.0,86139.0,0.05594]
[1764568804556,0.23741714,86140.0,86139.0,0.10706]
[1764568804758,0.23741714,86140.0,86139.0,0.05594]
[1764568804916,0.23741714,86140.0,86139.0,0.02301]
[1764568805755,0.39390082,86140.0,86139.0,0.001]
[1764568805923,0.8045287,86140.0,86139.0,0.001]
[1764568806144,0.83943443,86140.0,86139.0,0.001]
[1764568806312,0.62042776,86140.0,86139.0,0.001]
[1764568806705,0.59288203,86140.0,86139.0,0.001]
[1764568806831,0.58552203,86140.0,86139.0,0.001]
[1764568807285,0.01161022,86131.0,86128.0,0.02035]
[1764568807507,0.24381662,86131.0,86128.0,0.07152491]
[1764568807678,0.23220982,86129.0,86128.0,0.07152491]
[1764568807886,0.23220943,86130.0,86128.0,0.08197037]
[1764568808079,0.23220943,86130.0,86128.0,0.02040491]
[1764568808930,0.23220943,86130.0,86128.0,0.02240491]
[1764568809115,0.23220943,86130.0,86128.0,0.02040491]
[1764568809947,0.23220943,86130.0,86128.0,5.491e-05]
[1764568810470,0.23220943,86130.0,86128.0,0.00105491]
[1764568812576,0.23220943,86130.0,86129.0,0.02035]
[1764568813868,0.3881522,86130.0,86128.0,5.491e-05]
[1764568814075,0.08396,86129.0,86128.0,5.491e-05]
[1764568814275,0.40696,86129.0,86128.0,5.491e-05]
[1764568814719,0.46948299,86129.0,86128.0,5.491e-05]
[1764568814919,0.5931987,86129.0,86128.0,5.491e-05]
[1764568815169,0.43302682,86129.0,86128.0,5.491e-05]
[1764568815361,0.43938682,86129.0,86128.0,5.491e-05]
[1764568816424,0.44038682,86129.0,86128.0,5.491e-05]
[1764568817288,0.46239682,86129.0,86128.0,5.491e-05]
[1764568817519,0.46439682,86129.0,86128.0,5.491e-05]
[1764568817714,0.46239682,86129.0,86128.0,5.491e-05]
[1764568817915,0.46439682,86129.0,86128.0,5.491e-05]
[1764568818317,0.43933,86129.0,86128.0,5.491e-05]
[1764568818680,0.46437097,86129.0,86128.0,5.491e-05]
[1764568819247,0.4208691,86129.0,86128.0,5.491e-05]
[1764568821976,0.4135091,86129.0,86128.0,5.491e-05]
[1764568822173,0.4208691,86129.0,86128.0,5.491e-05]
[1764568822958,0.48339209,86129.0,86128.0,5.491e-05]
[1764568823851,0.5146781,86129.0,86128.0,5.491e-05]
[1764568826374,0.5373281,86129.0,86128.0,5.491e-05]
[1764568828112,0.56236412,86129.0,86128.0,5.491e-05]
[1764568830377,0.5373281,86129.0,86128.0,5.491e-05]
[1764568830574,0.47480511,86129.0,86128.0,5.491e-05]
[1764568831551,0.46744511,86129.0,86128.0,5.491e-05]
[1764568831735,0.47480511,86129.0,86128.0,5.491e-05]
[1764568834147,0.05629601,86129.0,86128.0,0.07744491]
[1764568834463,0.05629601,86129.0,86128.0,0.11199122]
[1764568834684,0.05629601,86129.0,86128.0,0.07744491]
[1764568834828,0.03428601,86129.0,86128.0,0.07744491]
[1764568835029,0.03328601,86129.0,86128.0,0.07744491]
[1764568836471,0.03128601,86129.0,86128.0,0.07744491]
[1764568836793,0.03228601,86129.0,86128.0,0.07744491]
[1764568837068,0.03128601,86129.0,86128.0,0.07744491]
[1764568837473,0.03128601,86129.0,86128.0,0.08144491]
[1764568839978,0.03128601,86129.0,86128.0,0.08880491]
[1764568844383,0.03128601,86129.0,86128.0,0.00736]
[1764568845876,0.03128601,86129.0,86128.0,0.02399]
[1764568846480,0.03128601,86129.0,86128.0,0.00736]
[1764568846888,0.03128601,86129.0,86128.0,0.02399]
[1764568847302,0.02896421,86129.0,86128.0,0.02399]
[1764568848453,0.02896421,86129.0,86128.0,0.04062]
[1764568849070,0.03489644,86133.0,86132.0,0.23220173]
[1764568849277,0.323,86144.0,86138.0,0.2437923]
[1764568849413,0.04401,86145.0,86138.0,0.2437923]
[1764568849612,0.03489441,86140.0,86139.0,0.23218286]
[1764568850506,0.03489441,86140.0,86139.0,0.3644395]
[1764568850743,0.0002,86150.0,86145.0,0.23216669]
[1764568850945,0.03508856,86150.0,86145.0,0.26542669]
[1764568851122,0.0002,86150.0,86145.0,0.26542669]
[1764568852222,0.0002,86150.0,86145.0,0.24879669]
[1764568852639,0.0002,86150.0,86145.0,0.26542669]
[1764568852855,0.0002,86150.0,86145.0,0.26642669]
[1764568854085,0.0002,86150.0,86145.0,0.27142669]
[1764568854862,0.0002,86150.0,86145.0,0.33394968]
[1764568856224,0.0002,86160.0,86159.0,0.23212897]
[1764568856386,0.02195,86178.0,86159.0,0.23212897]
[1764568856387,0.04948109,86178.0,86177.0,0.23208048]
[1764568856587,0.04948109,86178.0,86177.0,0.25760943]
[1764568856814,0.43967077,86178.0,86177.0,0.25760943]
[1764568857433,0.44006505,86178.0,86177.0,0.25760943]
[1764568857632,0.36217537,86178.0,86177.0,0.25760943]
[1764568859633,0.00039428,86178.0,86177.0,0.32129943]
[1764568859836,0.00239428,86178.0,86177.0,0.32129943]
[1764568860731,0.00039428,86178.0,86177.0,0.32129943]
[1764568861165,0.00039428,86178.0,86177.0,0.32229943]
[1764568861356,0.00039428,86178.0,86177.0,0.38482242]
[1764568861479,0.00039428,86178.0,86177.0,0.38382242]
[1764568861891,0.00141734,86178.0,86177.0,0.38382242]
[1764568862091,0.00141734,86178.0,86177.0,0.38482242]
[1764568862497,0.00141734,86178.0,86177.0,0.38382242]
[1764568862923,0.00141734,86178.0,86177.0,0.38682242]
[1764568863370,0.00141734,86178.0,86177.0,0.38382242]
[1764568863829,0.00141734,86178.0,86177.0,0.38682242]
[1764568863991,0.00141734,86178.0,86177.0,0.38882242]
[1764568864430,0.0002,86190.0,86189.0,0.29457116]
[1764568864558,0.0002,86200.0,86199.0,0.23202125]
[1764568864768,0.00031821,86200.0,86199.0,0.30303125]
[1764568865782,0.00031821,86200.0,86199.0,0.36555424]
[1764568865986,0.00031821,86200.0,86199.0,0.30603125]
[1764568866302,4.773e-05,86200.0,86199.0,0.30603125]
[1764568866516,0.80188272,86210.0,86208.0,0.26257703]
[1764568866672,0.3232,86210.0,86209.0,0.13693664]
[1764568866888,0.3232,86210.0,86209.0,0.17004664]
[1764568867127,0.0002,86210.0,86209.0,0.17004664]
[1764568867324,0.0002,86210.0,86209.0,0.19557559]
[1764568869487,0.0002,86210.0,86209.0,0.25809858]
[1764568869630,0.0002,86220.0,86218.0,0.23197012]
[1764568869812,0.0002,86220.0,86219.0,0.05457]
[1764568870018,0.0002,86220.0,86219.0,0.08768]
[1764568870214,0.00154188,86220.0,86219.0,0.11945769]
[1764568871258,0.00154188,86220.0,86219.0,0.12045769]
[1764568872429,0.00154188,86220.0,86219.0,0.12245769]
[1764568873642,0.00154188,86220.0,86219.0,0.18498068]
[1764568874031,0.00154188,86220.0,86219.0,0.20817742]
[1764568874424,0.04992799,86259.0,86242.0,0.01159527]
[1764568874630,0.04992799,86259.0,86227.0,0.06252299]
[1764568874631,0.00011812,86259.0,86258.0,0.0471]
[1764568874838,0.00011812,86259.0,86258.0,0.03844966]
[1764568875053,0.00011812,86259.0,86258.0,0.02384]
[1764568875791,0.00011812,86259.0,86258.0,0.05442]
[1764568876192,0.00011812,86259.0,86258.0,0.02384]
[1764568876193,0.32411812,86259.0,86258.0,0.02384]
[1764568876400,0.24346263,86256.0,86253.0,0.01652]
[1764568876574,0.01159339,86256.0,86253.0,0.00732]
[1764568877369,0.01171111,86259.0,86253.0,0.00732]
[1764568877370,0.01159326,86257.0,86253.0,0.00732]
[1764568877807,0.01159326,86257.0,86242.0,0.11059191]
[1764568877808,0.01159433,86249.0,86231.0,0.03305]
[1764568877999,0.0115946,86247.0,86232.0,0.12218988]
[1764568878197,0.01159474,86246.0,86233.0,0.00732]
[1764568878401,0.01159474,86246.0,86233.0,0.01891648]
[1764568878725,0.01159487,86245.0,86234.0,0.04423365]
[1764568878927,0.02382,86248.0,86234.0,0.04423365]
[1764568879318,0.01159474,86246.0,86234.0,0.05583]
[1764568879519,0.06211745,86247.0,86234.0,0.04423365]
[1764568879724,0.01159474,86246.0,86234.0,0.05583]
[1764568879925,0.01159474,86246.0,86235.0,0.03161465]
[1764568880133,0.01159487,86245.0,86235.0,0.03161465]
[1764568880329,0.01159541,86241.0,86235.0,0.03161465]
[1764568880536,0.01159568,86239.0,86235.0,0.00732]
[1764568880737,0.00051097,86236.0,86235.0,0.00732]
[1764568881137,0.01210705,86236.0,86230.0,0.01652]
[1764568881338,0.02382,86239.0,86231.0,0.10631664]
[1764568881559,0.02382,86239.0,86232.0,0.01344341]
[1764568881761,0.24351213,86238.0,86232.0,0.01344341]
[1764568881978,0.01159608,86236.0,86232.0,0.01344341]
[1764568882287,0.02382,86239.0,86231.0,0.00732]
[1764568882644,0.323,86241.0,86238.0,0.03219]
[1764568882849,0.33459541,86241.0,86236.0,0.00732]
[1764568883211,0.01159568,86239.0,86234.0,0.00732]
[1764568883364,0.01159527,86242.0,86234.0,0.00732]
[1764568883557,0.33459541,86241.0,86235.0,0.02799724]
[1764568883788,0.323,86241.0,86234.0,0.00732]
[1764568884144,0.56650481,86241.0,86234.0,0.00732]
[1764568884350,0.01159568,86239.0,86234.0,0.00732]
[1764568884847,0.01159541,86241.0,86234.0,0.00732]
[1764568885047,0.01159527,86242.0,86234.0,0.00732]
[1764568885250,0.02382,86256.0,86242.0,0.01159527]
[1764568885499,0.01159675,86249.0,86244.0,0.03219]
[1764568885661,0.01159675,86249.0,86240.0,0.01159554]
[1764568886000,0.03041353,86255.0,86243.0,0.01159514]
[1764568886204,0.01159366,86254.0,86242.0,0.01159527]
[1764568886378,0.34682,86256.0,86248.0,0.01159447]
[1764568886579,0.34682,86256.0,86254.0,0.01652]
[1764568886580,0.323,86256.0,86254.0,0.01652]
[1764568886743,0.323,86256.0,86255.0,0.03219]
[1764568886950,0.00011812,86259.0,86255.0,0.03219]
[1764568887300,0.00114942,86256.0,86255.0,0.03219]
[1764568887477,0.00114942,86256.0,86255.0,0.03037827]
[1764568888005,0.00114942,86256.0,86254.0,0.01652]
[1764568888207,0.00011812,86259.0,86254.0,0.01652]
[1764568888365,0.00011812,86259.0,86252.0,0.00732]
[1764568888366,0.00111751,86255.0,86252.0,0.00732]
[1764568888572,0.00011812,86259.0,86252.0,0.00732]
[1764568888796,0.00011812,86259.0,86252.0,0.25079018]
[1764568888995,0.00011812,86259.0,86256.0,0.01159339]
[1764568889155,0.00011812,86259.0,86256.0,0.24346131]
[1764568889363,0.00011812,86259.0,86258.0,0.03219]
[1764568889777,0.00011812,86259.0,86258.0,0.26405255]
[1764568889984,0.00011812,86259.0,86258.0,0.29710255]
[1764568890423,0.03484322,86275.0,86265.0,0.01159218]
[1764568890756,0.03523686,86275.0,86270.0,0.01159151]
[1764568891083,0.00039364,86275.0,86268.0,0.01159178]
[1764568891256,0.00039364,86275.0,86274.0,0.05268]
[1764568891568,0.00039364,86275.0,86272.0,0.00736]
[1764568891858,0.00039364,86275.0,86273.0,0.02507892]
[1764568892510,0.00039364,86275.0,86272.0,0.00736]
[1764568892865,0.00039364,86275.0,86274.0,0.0385]
[1764568893725,0.00039364,86275.0,86274.0,0.04586]
[1764568893956,0.00039364,86275.0,86274.0,0.09251]
[1764568895253,0.00039364,86275.0,86274.0,0.08515]
[1764568895410,0.00039364,86275.0,86274.0,0.1497093]
[1764568895741,0.06330855,86292.0,86274.0,0.1497093]
[1764568895742,0.03483735,86290.0,86289.0,0.23177925]
[1764568895968,0.01158614,86310.0,86289.0,0.23177925]
[1764568895969,0.01158667,86306.0,86299.0,0.05762]
[1764568896105,0.00031804,86300.0,86299.0,0.02584]
[1764568896337,0.00031804,86300.0,86299.0,0.05762]
[1764568896502,0.23173664,86305.0,86299.0,0.064118]
[1764568896860,0.01158708,86303.0,86299.0,0.064118]
[1764568897300,0.26546971,86300.0,86298.0,0.00736]
[1764568897510,0.26546971,86300.0,86298.0,0.00747804]
[1764568897906,0.08544,86299.0,86298.0,0.00011804]
[1764568898323,0.03372,86299.0,86298.0,0.00011804]
[1764568898530,0.23174971,86300.0,86298.0,0.00011804]
[1764568898738,0.08544,86299.0,86298.0,0.00011804]
[1764568899948,0.33458735,86301.0,86298.0,0.00011804]
[1764568900116,0.23174971,86300.0,86298.0,0.00011804]
[1764568900314,0.00252108,86299.0,86298.0,0.00011804]
[1764568901960,0.00252108,86299.0,86298.0,0.0085377]
[1764568902480,0.00252108,86299.0,86298.0,0.02244629]
[1764568902711,0.00252108,86299.0,86293.0,0.02584]
[1764568902924,0.00011796,86299.0,86293.0,0.02584]
[1764568903123,0.00011796,86299.0,86294.0,0.00736]
[1764568905707,0.01158627,86309.0,86301.0,0.00736]
[1764568906003,0.01158627,86309.0,86302.0,0.0372874]
[1764568906226,0.24330863,86311.0,86302.0,0.0372874]
[1764568906227,0.011586,86311.0,86302.0,0.0372874]
[1764568906352,0.2433064,86311.0,86302.0,0.0372874]
[1764568906557,0.000118,86313.0,86304.0,0.01158694]
[1764568906791,0.000118,86313.0,86312.0,0.05256]
[1764568907194,0.000118,86313.0,86312.0,0.10191]
[1764568907663,0.000118,86313.0,86312.0,0.05256]
[1764568907839,0.000118,86313.0,86312.0,0.01862]
[1764568909099,0.000118,86313.0,86312.0,0.05256]
[1764568909341,0.00308537,86313.0,86312.0,0.1465574]
[1764568909712,0.00308537,86313.0,86312.0,0.00736]
[1764568910166,0.00298507,86313.0,86312.0,0.00736]
[1764568910310,0.23169801,86320.0,86312.0,0.00736]
[1764568910661,0.01158493,86319.0,86312.0,0.00736]
[1764568910831,0.0115856,86314.0,86311.0,0.00736]
[1764568911030,0.02462,86313.0,86311.0,0.00736]
[1764568911488,0.01158493,86319.0,86312.0,0.08329]
[1764568911623,0.23195106,86321.0,86305.0,0.26194108]
[1764568911624,0.23171749,86312.0,86305.0,0.01862]
[1764568911823,0.02462,86313.0,86305.0,0.01862]
[1764568912049,0.04621,86318.0,86312.0,0.03394]
[1764568912050,0.01158506,86318.0,86312.0,0.03394]
[1764568912284,0.24328989,86317.0,86301.0,0.01158735]
[1764568912431,0.02462,86308.0,86297.0,0.01158788]
[1764568912630,0.0115856,86314.0,86306.0,0.00736]
[1764568912854,0.01158627,86309.0,86306.0,0.00736]
[1764568913076,0.23173053,86308.0,86306.0,0.00736]
[1764568913280,0.01158694,86304.0,86301.0,0.00736]
[1764568913797,0.2433276,86304.0,86301.0,0.00736]
[1764568914010,0.01158708,86303.0,86298.0,0.00108377]
[1764568914213,0.01158708,86303.0,86301.0,0.00736]
[1764568914390,0.01158641,86308.0,86301.0,0.00736]
[1764568914598,0.01158654,86307.0,86301.0,0.00736]
[1764568914815,0.011586,86311.0,86302.0,0.01158721]
[1764568914982,0.01158614,86310.0,86303.0,0.0727266]
[1764568915185,0.011586,86311.0,86304.0,0.01158694]
[1764568915401,0.01158574,86313.0,86310.0,0.01862]
[1764568915595,0.01158547,86315.0,86310.0,0.01862]
[1764568915851,0.0115856,86314.0,86310.0,0.01862]
[1764568916008,0.01158547,86315.0,86314.0,0.03394]
[1764568916620,0.01158453,86322.0,86314.0,0.03394]
[1764568916870,0.0115848,86320.0,86315.0,0.03394]
[1764568917080,0.24353554,86321.0,86315.0,0.03394]
[1764568917257,0.0002551,86321.0,86315.0,0.03394]
[1764568917453,0.0002551,86321.0,86320.0,0.00672]
[1764568919560,0.0002551,86321.0,86320.0,0.04066]
[1764568919768,0.23194843,86321.0,86320.0,0.00672]
[1764568920323,0.0002551,86321.0,86320.0,0.04066]
[1764568920529,0.0002551,86321.0,86320.0,0.32170601]
[1764568920661,0.0002551,86321.0,86320.0,0.34349261]
[1764568921074,0.0002551,86321.0,86320.0,0.1117966]
[1764568921474,0.0002551,86321.0,86320.0,0.0624466]
[1764568921703,0.0002551,86321.0,86320.0,0.04066]
[1764568921901,0.0002551,86321.0,86320.0,0.09001]
[1764568922911,0.0002551,86321.0,86320.0,0.32906601]
[1764568923315,0.0002551,86321.0,86320.0,0.65206601]
[1764568923725,0.0002551,86321.0,86320.0,0.32906601]
[1764568923913,0.0002551,86321.0,86320.0,0.38019793]
[1764568924288,0.0002551,86321.0,86320.0,0.14850192]
[1764568924501,0.0002551,86321.0,86320.0,0.14950192]
[1764568925024,0.0001606,86321.0,86320.0,0.14950192]
[1764568925233,0.0001606,86321.0,86320.0,0.14214192]
[1764568925428,0.01158305,86333.0,86327.0,0.01158386]
[1764568925633,0.01023278,86335.0,86328.0,0.01158372]
[1764568925837,0.24322858,86339.0,86334.0,0.03394]
[1764568926035,0.24323334,86337.0,86335.0,0.0413]
[1764568926244,0.02402853,86344.0,86338.0,0.03394]
[1764568926446,0.01158171,86343.0,86338.0,0.05952]
[1764568926666,0.01256493,86344.0,86342.0,0.03394]
[1764568926868,0.01256493,86344.0,86343.0,0.14004687]
[1764568927101,0.01215993,86344.0,86343.0,0.04841023]
[1764568927334,0.01215993,86344.0,86343.0,0.04105023]
[1764568927511,0.01215993,86344.0,86343.0,0.00711023]
[1764568927770,0.01215993,86344.0,86343.0,0.00736]
[1764568927977,0.01158171,86343.0,86338.0,0.02558]
[1764568928178,0.01158171,86343.0,86339.0,0.00736]
[1764568928313,0.91549759,86350.0,86329.0,0.01617876]
[1764568928530,0.24325207,86331.0,86329.0,0.00011798]
[1764568928745,0.24325207,86331.0,86329.0,0.00747798]
[1764568929182,0.24325207,86331.0,86329.0,0.00011798]
[1764568929391,0.24325207,86331.0,86329.0,0.00747798]
[1764568929865,0.24325207,86331.0,86329.0,0.00011798]
[1764568930086,0.02388,86330.0,86329.0,0.00011798]
[1764568930501,0.04776,86330.0,86329.0,0.00011798]
[1764568931361,0.50988932,86330.0,86329.0,0.00011798]
[1764568931769,0.53512335,86330.0,86329.0,0.00011798]
[1764568931965,0.45851702,86330.0,86329.0,0.00011798]
[1764568932230,0.45951702,86330.0,86329.0,0.00011798]
[1764568932780,0.45851702,86330.0,86329.0,0.00011798]
[1764568932983,0.45951702,86330.0,86329.0,0.00011798]
[1764568933895,0.46687702,86330.0,86329.0,0.00011798]
[1764568935722,0.38047403,86330.0,86329.0,0.00011798]
[1764568935906,0.37311403,86330.0,86329.0,0.00011798]
[1764568936402,0.51534694,86330.0,86329.0,0.00011798]
[1764568936628,0.37211403,86330.0,86329.0,0.00011798]
[1764568936830,0.34716694,86330.0,86329.0,0.00011798]
[1764568937030,0.02516694,86330.0,86329.0,0.00011798]
[1764568937865,0.02516694,86330.0,86329.0,0.22863598]
[1764568938394,0.02416694,86330.0,86329.0,0.22863598]
[1764568938725,0.02516694,86330.0,86329.0,0.22863598]